fUST/lending_fUST_20250928
["ID","MTS","AMOUNT","RATE_DAILY","PERIOD"]
[388224434,1759055238367,-151.0,0.00034812,2]
[388224435,1759055238386,-600.0,0.00034813,2]
[388224436,1759055238405,-151.0,0.00034917,30]
[388224437,1759055238426,-199.0,0.00034926,16]
[388224438,1759055238446,-162.0,0.00034995,7]
[388224439,1759055238466,-162.0,0.00034995,7]
[388224440,1759055238487,-1500.0,0.00034996,5]
[388224441,1759055238506,-1003.83663612,0.00035,14]
[388224442,1759055238525,-1000.0,0.00035,30]
[388224443,1759055238546,-1000.0,0.00035,30]
[388224444,1759055238568,-1000.0,0.00035,30]
[388224445,1759055238589,-1000.0,0.00035,30]
[388224446,1759055238609,-151.0,0.00035,17]
[388224447,1759055238629,-352.43479558,0.0003501,2]
[388224448,1759055238648,-487.56647123,0.00035024,2]
[388224449,1759055238668,-245.0,0.00035056,5]
[388224450,1759055238689,-245.0,0.00035056,5]
[388224451,1759055238711,-198.0,0.00035063,120]
[388224452,1759055238733,-245.0,0.00035086,2]
[388224453,1759055238752,-245.0,0.00035086,2]
[388224454,1759055238771,-245.0,0.00035086,2]
[388224455,1759055238791,-151.0,0.000351,16]
[388224456,1759055238811,-182.27765938,0.0003514,2]
[388224457,1759055238831,-151.0,0.0003516,30]
[388224458,1759055238851,-600.0,0.00035172,2]
[388224459,1759055238870,-151.0,0.000352,13]
[388224460,1759055238890,-24365.47496811,0.000352,5]
[388224541,1759055352072,-152.57814393,0.0002905,2]
[388224542,1759055352092,-500.0,0.0003,2]
[388224606,1759055438109,-500.0,0.00033631,7]
[388224608,1759055438119,-500.0,0.00033631,7]
[388224610,1759055438128,-500.0,0.00033631,7]
[388224612,1759055438138,-500.0,0.00033631,7]
[388224614,1759055438148,-500.0,0.00033631,7]
[388224616,1759055438158,-2.90332743,0.00033631,7]
[388224742,1759055439392,-497.09667257,0.00033631,7]
[388224743,1759055439403,-500.0,0.00033631,7]
[388224744,1759055439412,-500.0,0.00033631,7]
[388224745,1759055439421,-500.0,0.00033631,7]
[388224746,1759055439430,-231.63748095,0.00033631,7]
[388224747,1759055439440,-500.0,0.00033631,7]
[388224748,1759055439449,-500.0,0.00033631,7]
[388224749,1759055439458,-500.0,0.00033631,2]
[388224750,1759055439467,-500.0,0.00033631,7]
[388224751,1759055439475,-250.0,0.00033631,2]
[388224752,1759055439484,-500.0,0.00033631,7]
[388224753,1759055439493,-500.0,0.00033631,7]
[388224754,1759055439502,-500.0,0.00033631,7]
[388224755,1759055439511,-500.0,0.00033631,7]
[388224756,1759055439520,-500.0,0.00033631,7]
[388224757,1759055439529,-500.0,0.00033631,7]
[388224758,1759055439538,-400.0,0.00033631,2]
[388224759,1759055439547,-47078.11089026,0.00033632,2]
[388224790,1759055443742,-500.0,0.00033631,7]
[388224791,1759055443751,-500.0,0.00033631,7]
[388224792,1759055443760,-500.0,0.00033631,7]
[388224793,1759055443769,-500.0,0.00033631,7]
[388224794,1759055443778,-400.0,0.00033631,7]
[388224795,1759055443787,-500.0,0.00033631,7]
[388224796,1759055443796,-500.0,0.00033631,7]
[388224797,1759055443805,-177.50804939,0.00033632,2]
[388224798,1759055443814,-4553.8216048,0.00033632,2]
[388224844,1759056546934,2894.05660065,0.0003,15]
[388224845,1759056548104,-44729.40006188,0.0003,15]
[388224846,1759056548715,-281.28038356,0.0003,15]
[388224847,1759056551761,-281.28038356,0.0003,15]
[388224848,1759056563081,-99202.3088182,0.0003,15]
[388224849,1759056563107,-123832.50041245,0.0003,15]
[388224850,1759056565088,-24376.2077034,0.0003,15]
[388224851,1759056567128,-54420.87591053,0.0003,15]
[388224852,1759056567149,-32209.21498087,0.0003,15]
[388224875,1759056632414,-300.0,0.00029999,2]
[388224876,1759056632423,-500.0,0.00029999,2]
[388224878,1759056632432,-225.37522521,0.00029999,2]
[388232970,1759056759438,281.28038356,0.00025205,2]
[388232971,1759056768270,281.28038356,0.00025205,2]
[388233033,1759057533132,-151.835016,0.00029061,15]
[388233034,1759057533154,-151.835016,0.0002923,15]
[388233035,1759057533175,-151.835016,0.000294,15]
[388233036,1759057533195,-300.0,0.00029996,2]
[388233037,1759057533215,-66.0553613,0.00029996,2]
[388233093,1759057633091,-300.0,0.00029995,2]
[388233094,1759057633111,-500.0,0.00029996,2]
[388233095,1759057633132,-500.0,0.00029996,2]
[388233096,1759057633152,-500.0,0.00029996,2]
[388233097,1759057633173,-474.47449737,0.00029996,2]
[388233098,1759057633204,-25.52550263,0.00029996,2]
[388233099,1759057633223,-500.0,0.00029996,2]
[388233100,1759057633243,-500.0,0.00029996,2]
[388233101,1759057633263,-500.0,0.00029996,2]
[388233102,1759057633285,-500.0,0.00029996,2]
[388233103,1759057633304,-500.0,0.00029996,2]
[388233104,1759057633324,-500.0,0.00029996,2]
[388233105,1759057633342,-397.16229731,0.00029996,2]
[388233106,1759057633363,-500.0,0.00029996,2]
[388233107,1759057633382,-500.0,0.00029996,2]
[388233108,1759057633401,-500.0,0.00029996,2]
[388233109,1759057633420,-500.0,0.00029996,2]
[388233110,1759057633443,-500.0,0.00029996,2]
[388233111,1759057633463,-540.9446387,0.00029996,2]
[388233112,1759057633484,-10000.01,0.00029997,2]
[388233113,1759057633504,-500.0,0.00029999,2]
[388233114,1759057633523,-500.0,0.00029999,2]
[388233115,1759057633544,-500.0,0.00029999,2]
[388233116,1759057633564,-500.0,0.00029999,2]
[388233117,1759057633582,-500.0,0.00029999,2]
[388233118,1759057633602,-382.643871,0.00029999,2]
[388233119,1759057633622,-500.0,0.00029999,2]
[388233120,1759057633644,-500.0,0.00029999,2]
[388233121,1759057633665,-500.0,0.00029999,2]
[388233122,1759057633685,-500.0,0.00029999,2]
[388233123,1759057633706,-500.0,0.00029999,2]
[388233124,1759057633726,-500.0,0.00029999,2]
[388233125,1759057633748,-500.0,0.00029999,2]
[388233126,1759057633767,-500.0,0.00029999,2]
[388233127,1759057633787,-500.0,0.00029999,2]
[388233128,1759057633809,-500.0,0.00029999,2]
[388233129,1759057633830,-500.0,0.00029999,2]
[388233130,1759057633850,-500.0,0.00029999,2]
[388233131,1759057633870,-559.50236567,0.00029999,2]
[388233132,1759057633889,-500.0,0.00029999,2]
[388233133,1759057633908,-500.0,0.00029999,2]
[388233134,1759057633928,-300.0,0.00029999,2]
[388233135,1759057633948,-23364.16457891,0.0003,15]
[388233138,1759057639082,-35915.40575368,0.0003,15]
[388233139,1759057639103,-166.0,0.0003,7]
[388233140,1759057639126,-166.0,0.0003,7]
[388233141,1759057639147,-166.0,0.0003,7]
[388233142,1759057639168,-175.39054868,0.0003,7]
[388233143,1759057639189,-162.0,0.0003,7]
[388233144,1759057639210,-163.04405493,0.0003,7]
[388233145,1759057639231,-329.0,0.0003,7]
[388233146,1759057639252,-263.14879922,0.0003,7]
[388233147,1759057639274,-151.0,0.0003,7]
[388233148,1759057639300,-151.0,0.0003,7]
[388233149,1759057639323,-151.0,0.0003,7]
[388233150,1759057639345,-151.0,0.0003,7]
[388233151,1759057639371,-151.0,0.0003,7]
[388233152,1759057639393,-151.0,0.0003,7]
[388233153,1759057639414,-151.0,0.0003,7]
[388233154,1759057639435,-151.0,0.0003,7]
[388233155,1759057639456,-151.0,0.0003,7]
[388233156,1759057639476,-151.0,0.0003,7]
[388233157,1759057639497,-151.0,0.0003,7]
[388233158,1759057639518,-151.0,0.0003,7]
[388233159,1759057639539,-151.0,0.0003,7]
[388233160,1759057639564,-151.0,0.0003,7]
[388233161,1759057639586,-151.0,0.0003,7]
[388233162,1759057639606,-151.0,0.0003,7]
[388233163,1759057639628,-151.0,0.0003,7]
[388233164,1759057639648,-151.0,0.0003,7]
[388233165,1759057639669,-151.0,0.0003,7]
[388233166,1759057639690,-151.0,0.0003,7]
[388233167,1759057639711,-151.0,0.0003,7]
[388233168,1759057639731,-151.0,0.0003,7]
[388233169,1759057639752,-151.0,0.0003,7]
[388233170,1759057639773,-151.0,0.0003,7]
[388233171,1759057639795,-151.0,0.0003,7]
[388233172,1759057639817,-151.0,0.0003,7]
[388233173,1759057639838,-151.0,0.0003,7]
[388233174,1759057639858,-151.0,0.0003,7]
[388233175,1759057639877,-151.0,0.0003,7]
[388233176,1759057639898,-151.0,0.0003,7]
[388233177,1759057639918,-151.0,0.0003,7]
[388233178,1759057639939,-151.0,0.0003,7]
[388233179,1759057639960,-151.0,0.0003,7]
[388233180,1759057639980,-151.0,0.0003,7]
[388233181,1759057640001,-151.0,0.0003,7]
[388233182,1759057640021,-151.0,0.0003,7]
[388233183,1759057640042,-151.0,0.0003,7]
[388233184,1759057640063,-151.0,0.0003,7]
[388233185,1759057640083,-151.0,0.0003,7]
[388233186,1759057640104,-151.0,0.0003,7]
[388233187,1759057640124,-151.0,0.0003,7]
[388233188,1759057640143,-151.0,0.0003,7]
[388233189,1759057640163,-151.0,0.0003,7]
[388233190,1759057640184,-151.0,0.0003,7]
[388233191,1759057640204,-151.0,0.0003,7]
[388233192,1759057640226,-151.0,0.0003,7]
[388233193,1759057640246,-151.0,0.0003,7]
[388233194,1759057640266,-151.0,0.0003,7]
[388233195,1759057640289,-151.0,0.0003,7]
[388233196,1759057640308,-151.0,0.0003,7]
[388233197,1759057640331,-151.0,0.0003,7]
[388233198,1759057640351,-151.0,0.0003,7]
[388233199,1759057640372,-151.0,0.0003,7]
[388233200,1759057640393,-151.0,0.0003,7]
[388233201,1759057640413,-151.0,0.0003,7]
[388233202,1759057640435,-151.0,0.0003,7]
[388233203,1759057640456,-151.0,0.0003,7]
[388233204,1759057640476,-188.30435734,0.0003,7]
[388233205,1759057640496,-151.0,0.0003,7]
[388233206,1759057640517,-166.0,0.0003,7]
[388233207,1759057640538,-166.0,0.0003,7]
[388233208,1759057640560,-3863.6080362,0.00030773,2]
[388233209,1759057640580,-808.22104612,0.00030773,2]
[388233210,1759057640601,-10646.3886348,0.00030783,2]
[388233211,1759057640622,-1210.4158721,0.00030783,2]
[388233212,1759057640644,-151.835016,0.00030956,15]
[388233213,1759057640665,-151.835016,0.00031434,15]
[388233214,1759057640686,-151.835016,0.00031912,15]
[388233215,1759057640705,-160.0,0.0003197,2]
[388233216,1759057640726,-233.71402077,0.0003197,2]
[388233217,1759057640746,-189.35579204,0.0003197,2]
[388233218,1759057640767,-166.0,0.0003226,2]
[388233219,1759057640788,-420.0,0.00032328,2]
[388233220,1759057640808,-705.002798,0.00032877,2]
[388233221,1759057640828,-500.0,0.00033424,120]
[388233222,1759057640848,-476.44597838,0.00033424,120]
[388233223,1759057640869,-222.41033761,0.00033432,2]
[388233224,1759057640888,-3244.08948831,0.00033432,2]
[388233225,1759057640909,-160.0,0.00033461,2]
[388233226,1759057640929,-285.63,0.00033512,3]
[388233227,1759057640950,-856.91,0.00033512,3]
[388233228,1759057640970,-19716.17059339,0.00033522,2]
[388233230,1759057648114,-11192.69369621,0.00033522,2]
[388233231,1759057648135,-6465.76836896,0.00033522,2]
[388233232,1759057648156,-4727.85113183,0.00033522,2]
[388233254,1759057773459,320.0,0.00027,2]
[388233286,1759057833361,-889.64135036,0.00033432,2]
[388233288,1759057833370,-250.0,0.00033511,2]
[388233290,1759057833379,-250.0,0.00033511,2]
[388233292,1759057833388,-250.0,0.00033511,2]
[388233294,1759057833398,-250.0,0.00033511,2]
[388233296,1759057833411,-250.0,0.00033511,2]
[388233298,1759057833420,-250.0,0.00033511,2]
[388233300,1759057833430,-250.0,0.00033511,2]
[388233302,1759057833440,-400.0,0.0003352,2]
[388233304,1759057833450,-500.0,0.00033521,2]
[388233306,1759057833459,-500.0,0.00033521,2]
[388233308,1759057833467,-377.46247748,0.00033521,2]
[388233310,1759057833477,-500.0,0.00033521,2]
[388233312,1759057833486,-5205.58074545,0.00033522,2]
[388233315,1759057833498,-875.66708873,0.00033522,2]
[388233317,1759057833509,-5250.30334572,0.00033522,2]
[388233319,1759057833519,-20774.5104964,0.00033522,2]
[388233321,1759057833528,-500.0,0.00033531,7]
[388233323,1759057833537,-500.0,0.00033531,7]
[388233325,1759057833546,-219.50236566,0.00033531,7]
[388233327,1759057833554,-500.0,0.00033531,7]
[388233329,1759057833564,-500.0,0.00033531,7]
[388233331,1759057833573,-500.0,0.00033531,7]
[388233333,1759057833582,-500.0,0.00033531,7]
[388233335,1759057833591,-500.0,0.00033531,7]
[388233337,1759057833599,-500.0,0.00033531,7]
[388233339,1759057833608,-500.0,0.00033531,7]
[388233341,1759057833617,-500.0,0.00033531,7]
[388233342,1759057833626,-500.0,0.00033531,7]
[388233344,1759057833635,-500.0,0.00033531,7]
[388233346,1759057833645,-500.0,0.00033531,7]
[388233348,1759057833653,-500.0,0.00033531,7]
[388233350,1759057833663,-600.0,0.00033531,7]
[388233352,1759057833672,-786.47089394,0.00033531,3]
[388233354,1759057833682,-147268.19346299,0.00033532,2]
[388233355,1759057833694,-17249.91404579,0.00033532,2]
[388233390,1759057838699,-160.0,0.00033516,2]
[388233391,1759057838709,-5458.88369491,0.00033532,2]
[388233392,1759057838773,-252.7193886,0.00033532,2]
[388233493,1759057840425,-153846.56196909,0.00033532,2]
[388233500,1759057840479,-1326.66510949,0.00033532,2]
[388233506,1759057840534,-9661.14050708,0.00033532,2]
[388233827,1759057843582,-91.28448992,0.00033532,2]
[388233828,1759057843601,-315.98676429,0.00033532,2]
[388233830,1759057843693,-1380.17175273,0.00033532,2]
[388233832,1759057843704,-7765.48905276,0.00033532,2]
[388234136,1759057846688,-955.21334467,0.00033532,2]
[388234138,1759057846699,-436.34609954,0.00033532,2]
[388234143,1759057846737,-2487.368133,0.00033532,2]
[388241827,1759057926884,244.23555313,0.00027,2]
[388253280,1759058345974,-194.04383793,0.00030684,14]
[388253283,1759058349890,-4.95616207,0.00030684,14]
[388253287,1759058364095,194.04383793,0.00028,2]
[388253308,1759058548339,160.0,0.00028,2]
[388253389,1759058803084,160.0,0.00028,2]
[388253396,1759058827100,-500.0,0.00032876,120]
[388253397,1759058827121,-669.752658,0.00032877,2]
[388253398,1759058827141,-1061.10385604,0.0003299,2]
[388253563,1759059032661,-90.88387598,0.0003299,2]
[388253564,1759059032671,-160.0,0.00033422,2]
[388253565,1759059032680,-1983.0214565,0.00033422,2]
[388253566,1759059032690,-571.26,0.00033422,3]
[388253567,1759059032699,-264.43571383,0.00033422,2]
[388253568,1759059032709,-262.22564316,0.00033426,2]
[388253569,1759059032718,-392.91877749,0.00033427,2]
[388253570,1759059032819,-5329.56525313,0.00033427,2]
[388253571,1759059032835,-400.0,0.0003343,2]
[388253573,1759059032844,-500.0,0.00033431,7]
[388253574,1759059032853,-500.0,0.00033431,7]
[388253576,1759059032862,-500.0,0.00033431,7]
[388253578,1759059032872,-500.0,0.00033431,7]
[388253580,1759059032881,-500.0,0.00033431,7]
[388253582,1759059032890,-500.0,0.00033431,7]
[388253583,1759059032900,-373.65165596,0.00033431,7]
[388253584,1759059032909,-500.0,0.00033431,7]
[388253585,1759059032918,-500.0,0.00033431,7]
[388253586,1759059032927,-500.0,0.00033431,7]
[388253587,1759059032937,-500.0,0.00033431,7]
[388253588,1759059032946,-199.0,0.00033431,14]
[388253589,1759059032955,-33390.27921519,0.00033432,2]
[388253654,1759059038604,-465.5098032,0.00033432,2]
[388253656,1759059038615,-1983.12582842,0.00033432,2]
[388253668,1759059038714,-805.77809318,0.00033432,2]
[388253670,1759059038725,-300.25168361,0.00033432,2]
[388253690,1759059038900,-266.8,0.00033432,2]
[388253692,1759059038911,-1083.99525696,0.00033432,2]
[388253694,1759059038923,-1000.9999859,0.00033432,2]
[388253697,1759059038934,-3881.99377508,0.00033432,2]
[388253915,1759059040949,-194.08431484,0.00033431,7]
[388253918,1759059040959,-53.78863116,0.00033432,2]
[388254509,1759059046845,-183080.82198899,0.00033432,2]
[388254762,1759059049404,1417.4843072,0.00025204,2]
[388259263,1759059096613,1494.36779899,0.00028,2]
[388259266,1759059096634,2913.46552164,0.00028,2]
[388259269,1759059096660,592.16667937,0.00028,2]
[388265868,1759059365894,122.95616207,0.00025205,2]
[388265870,1759059365920,294.19856578,0.00025205,2]
[388265942,1759059850460,1002.0,0.00025,7]
[388266137,1759060232023,-282.866962,0.0003197,2]
[388266138,1759060232033,-182.3516398,0.00032,120]
[388266139,1759060232043,-365.0,0.00032,2]
[388266140,1759060232052,-257.44033104,0.00032526,2]
[388266141,1759060232061,-712.862528,0.00032877,2]
[388266142,1759060232070,-160.0,0.0003293,2]
[388266143,1759060232079,-189.35579204,0.00032931,2]
[388266144,1759060232088,-168.0,0.00032936,2]
[388266145,1759060232097,-500.0,0.00033209,2]
[388266146,1759060232107,-500.0,0.00033209,2]
[388266147,1759060232117,-400.0,0.00033209,2]
[388266148,1759060232126,-500.0,0.0003321,7]
[388266149,1759060232136,-500.0,0.0003321,7]
[388266150,1759060232145,-500.0,0.0003321,7]
[388266151,1759060232154,-534.15881769,0.0003321,7]
[388266152,1759060232163,-500.0,0.0003321,7]
[388266154,1759060232172,-500.0,0.0003321,7]
[388266155,1759060232182,-500.0,0.0003321,7]
[388266156,1759060232191,-500.0,0.0003321,7]
[388266157,1759060232201,-500.0,0.0003321,7]
[388266158,1759060232211,-500.0,0.0003321,7]
[388266159,1759060232220,-6014.94455187,0.00033211,2]
[388266701,1759060242969,-43985.05544813,0.00033211,2]
[388266702,1759060242978,-172.0,0.00033211,7]
[388266703,1759060242987,-156.0,0.00033211,7]
[388266704,1759060242996,-156.0,0.00033211,7]
[388266705,1759060243007,-156.0,0.00033211,7]
[388266706,1759060243016,-156.0,0.00033211,7]
[388266708,1759060243026,-156.0,0.00033211,7]
[388266710,1759060243040,-162.44067088,0.00033211,7]
[388266712,1759060243057,-373.93436813,0.00033227,2]
[388266714,1759060243067,-248.00410294,0.00033236,2]
[388266716,1759060243077,-4174.59981813,0.0003329,2]
[388266719,1759060243087,-1489.42746344,0.00033322,2]
[388266721,1759060243096,-229.07,0.00033322,120]
[388266723,1759060243105,-189.1492399,0.00033327,30]
[388266725,1759060243114,-376.679279,0.00033327,30]
[388266727,1759060243124,-393.23544697,0.00033331,3]
[388266729,1759060243132,-6099.66808991,0.00033332,2]
[388267192,1759060247765,281.95768232,0.00025205,2]
[388275285,1759060335275,188.0,0.00025781,14]
[388280974,1759060621923,900.0,0.00025205,2]
[388280979,1759060651993,5005.0,0.00028767,120]
[388283449,1759061143101,-282.866963,0.00032071,2]
[388283450,1759061143121,-493.91067394,0.00032877,2]
[388283503,1759061200572,743.0,0.00025205,2]
[388283551,1759061252088,-183.30872706,0.00032877,2]
[388283552,1759061252108,-160.0,0.0003314,2]
[388283553,1759061252129,-234.85881426,0.00033145,2]
[388283554,1759061252148,-400.0,0.00033209,2]
[388283555,1759061252169,-480.0,0.0003321,7]
[388283556,1759061252189,-731.8076551,0.00033222,2]
[388283557,1759061253080,-2408.90189702,0.00033222,2]
[388283558,1759061253100,-270.15167146,0.00033222,2]
[388283565,1759061279549,-205.9028969,0.0003,2]
[388283566,1759061281016,-296.43717973,0.0003,2]
[388283568,1759061282973,-203.45255763,0.0003,2]
[388283572,1759061285005,-210.15813308,0.0003,2]
[388283576,1759061289571,-290.29063481,0.0003,2]
[388283577,1759061292040,-179.42085529,0.0003,2]
[388283578,1759061295613,-240.11461042,0.0003,2]
[388283579,1759061299504,-163.90713401,0.0003,2]
[388283582,1759061302481,-184.7570488,0.0003,2]
[388283583,1759061304972,-437.26647262,0.0003,2]
[388283584,1759061309054,-160.42024546,0.0003,2]
[388283585,1759061311171,-253.34067143,0.0003,2]
[388283588,1759061315410,-204.06731607,0.0003,2]
[388283589,1759061317823,-170.46424375,0.0003,2]
[388283590,1759061317843,-129.47136883,0.00033145,2]
[388283591,1759061320554,-300.0,0.00033145,2]
[388283592,1759061323958,-218.13990835,0.00033145,2]
[388283593,1759061326429,-190.49204894,0.00033145,2]
[388283595,1759061327858,-275.70701699,0.00033145,2]
[388283596,1759061331864,-169.91,0.00033145,2]
[388283677,1759061435601,-654.404849,0.00032877,2]
[388283678,1759061435611,-1499.34620231,0.00033145,2]
[388283679,1759061435621,-2198.49668646,0.00033222,2]
[388283680,1759061435631,-400.0,0.00033229,2]
[388283681,1759061435640,-500.0,0.0003323,7]
[388283682,1759061435650,-500.0,0.0003323,7]
[388283683,1759061435659,-500.0,0.0003323,7]
[388283684,1759061435668,-617.37942592,0.0003323,7]
[388283685,1759061435682,-500.0,0.0003323,7]
[388283686,1759061435692,-500.0,0.0003323,7]
[388283687,1759061435702,-500.0,0.0003323,7]
[388283688,1759061435711,-500.0,0.0003323,7]
[388283689,1759061435721,-500.0,0.0003323,7]
[388283690,1759061435729,-500.0,0.0003323,7]
[388283692,1759061435739,-29766.33694903,0.0003323,2]
[388283694,1759061435755,-67.19601131,0.0003323,2]
[388283696,1759061435763,-199.0,0.00033231,14]
[388283698,1759061435772,-15.76167101,0.00033231,3]
[388283910,1759061440188,-0.02933175,0.00033231,3]
[388283911,1759061440227,-180.82672073,0.00033231,3]
[388283912,1759061440236,-985.72261068,0.00033232,2]
[388283913,1759061440274,-297.67261872,0.00033232,2]
[388284363,1759061446168,-1174.41373238,0.00033232,2]
[388289374,1759061498313,500.0,0.0003,2]
[388292221,1759061528990,498.0,0.00025205,2]
[388292452,1759061694464,5000.0,0.00025205,2]
[388292457,1759061717489,4257.01,0.00025205,2]
[388292458,1759061717512,742.99,0.00025205,2]
[388292460,1759061726986,300.0,0.000252,2]
[388292462,1759061740894,5000.0,0.00025205,2]
[388292463,1759061764128,3957.02,0.00025205,2]
[388292464,1759061764151,1042.98,0.00025205,2]
[388292492,1759061786360,300.0,0.000252,2]
[388292499,1759061787831,281.30376254,0.00025205,2]
[388292500,1759061787864,4718.69623746,0.00025205,2]
[388292518,1759061812208,3888.67650518,0.00025205,2]
[388292525,1759061918422,1000.0,0.00033951,60]
[388292526,1759061925552,1000.0,0.00033951,60]
[388292528,1759061938425,1000.0,0.00033951,120]
[388292537,1759061959013,1000.0,0.00033951,120]
[388292557,1759061967161,1000.0,0.00033951,120]
[388292559,1759061973373,1000.0,0.00033951,120]
[388292560,1759061987442,1000.0,0.00033951,120]
[388292561,1759062019982,1000.0,0.00033951,120]
[388292562,1759062025573,1000.0,0.00033951,120]
[388292563,1759062031148,1000.0,0.00033951,120]
[388292564,1759062036513,1000.0,0.00033951,120]
[388292566,1759062060561,1038.4739523,0.00033951,120]
[388292612,1759062355106,-500.0,0.00031998,7]
[388292613,1759062355127,-887.40541207,0.00032988,3]
[388292642,1759062449086,-1600.0,0.00032988,3]
[388292643,1759062449108,-300.0,0.00032989,3]
[388292644,1759062449129,-89.29751964,0.00032989,7]
[388292655,1759062516568,-194.04383793,0.000275,2]
[388292669,1759062545085,-1955.14846023,0.000275,2]
[388292683,1759062620823,2086.53447836,0.00025205,2]
[388292708,1759062632636,-4917.5538808,0.00032765,2]
[388292709,1759062632646,-661.581412,0.00032877,2]
[388292710,1759062632656,-410.70248036,0.00032989,7]
[388292711,1759062632666,-313.0,0.00032989,3]
[388292712,1759062632677,-334.95073953,0.00032989,7]
[388292713,1759062632688,-500.0,0.00032989,2]
[388292714,1759062632698,-400.0,0.00032989,2]
[388292715,1759062632708,-1600.0,0.00032989,3]
[388292716,1759062632718,-6331.553537,0.0003299,2]
[388292717,1759062632750,-3668.456463,0.0003299,2]
[388292719,1759062632760,-390.611828,0.00033,30]
[388292720,1759062632771,-679.77571384,0.00033021,2]
[388292721,1759062632781,-187.8870514,0.00033032,2]
[388292722,1759062632791,-187.88705137,0.00033072,2]
[388292724,1759062632802,-187.88705137,0.00033111,2]
[388292726,1759062632812,-21232.01938401,0.00033121,2]
[388292728,1759062632823,-223.991686,0.00033121,10]
[388292730,1759062632833,-1795.44714328,0.00033122,2]
[388292732,1759062632843,-512.98489808,0.00033122,2]
[388292734,1759062632853,-165.60004426,0.00033131,10]
[388292736,1759062632863,-155.514,0.00033131,2]
[388292738,1759062632874,-196.61772349,0.00033131,3]
[388292740,1759062632883,-16151.08904038,0.00033132,2]
[388293292,1759062643387,-397.53915692,0.0003312,7]
[388293294,1759062643399,-102.46084308,0.0003312,7]
[388293296,1759062643408,-500.0,0.0003312,7]
[388293297,1759062643418,-500.0,0.0003312,7]
[388293298,1759062643427,-500.0,0.0003312,7]
[388293299,1759062643436,-337.03835124,0.0003312,7]
[388293527,1759062646224,-162.96164876,0.0003312,7]
[388293528,1759062646234,-500.0,0.0003312,7]
[388293529,1759062646243,-518.74148094,0.0003312,7]
[388293530,1759062646252,-500.0,0.0003312,7]
[388293531,1759062646262,-11737.08783139,0.00033132,2]
[388293652,1759062997501,49.65725736,0.00025205,2]
[388293653,1759062997530,367.49747049,0.00025205,2]
[388293660,1759063126538,9632.51252951,0.00025205,2]
[388293661,1759063126561,367.48747049,0.00025205,2]
[388293665,1759063142888,5000.0,0.00025205,2]
[388293666,1759063152275,4632.52252951,0.00025205,2]
[388293667,1759063152480,367.47747049,0.00025205,2]
[388293668,1759063160877,4100.82912699,0.00025205,2]
[388293669,1759063168940,3492.93070027,0.00025205,2]
[388293670,1759063185573,2038.77270225,0.00025205,2]
[388293671,1759063185595,2961.22729775,0.00025205,2]
[388293672,1759063193620,4032.10969788,0.00025205,2]
[388293679,1759063201695,3006.67300437,0.00025205,2]
[388293680,1759063201718,1993.32699563,0.00025205,2]
[388293689,1759063210874,5000.0,0.00025205,2]
[388293705,1759063226609,3006.68300437,0.00025205,2]
[388293706,1759063226632,864.36963644,0.00025205,2]
[388293707,1759063235764,5000.0,0.00025205,2]
[388293708,1759063251343,3871.05264081,0.00025205,2]